bitfinex/quotes_ETHUSD_20240711
["timestamp","ask_amount","ask_price","bid_price","bid_amount"]
[1720700727252,6.33262,3158.3,3157.4,3.16716]
[1720700727459,3.81089131,3158.3,3157.4,3.16716]
[1720700727650,0.64462131,3158.3,3157.5,3.16706]
[1720700727869,3.16636,3158.2,3157.5,3.16706]
[1720700728385,3.16635,3158.3,3157.5,3.16706]
[1720700728681,1.09656708,3158.2,3157.5,3.16706]
[1720700728876,3.16636,3158.2,3157.1,9.2074]
[1720700729085,3.16636,3158.2,3157.4,3.16716]
[1720700729239,1.09657659,3158.1,3157.4,3.16716]
[1720700729435,3.16636,3158.2,3157.4,6.33426]
[1720700729673,3.16636,3158.2,3157.4,3.1671]
[1720700730483,1.09657352,3158.1,3157.4,3.1671]
[1720700730781,3.16636,3158.2,3157.4,3.1671]
[1720700730782,1.09663618,3158.0,3157.4,3.1671]
[1720700730953,3.16636,3158.2,3157.4,3.85554]
[1720700731150,3.16636,3158.2,3157.2,6.88461]
[1720700731354,1.09657961,3158.1,3157.3,3.16726]
[1720700731564,3.16636,3158.2,3157.4,3.71712]
[1720700731880,3.16636,3158.2,3157.4,3.71709]
[1720700733284,4.26304134,3158.1,3157.4,0.55]
[1720700733485,3.16648,3158.1,3157.3,3.71719]
[1720700733779,6.97728431,3158.3,3157.4,6.33425]
[1720700733993,4.26293465,3158.2,3157.4,6.33425]
[1720700734174,3.16638,3158.2,3157.4,6.33425]
[1720700734375,1.09655448,3158.1,3157.4,6.33418]
[1720700734577,3.16638,3158.2,3157.4,7.1202427]
[1720700735361,3.81093431,3158.3,3157.5,3.16705]
[1720700735779,1.09655086,3158.2,3157.5,3.16705]
[1720700735990,1.09655086,3158.1,3157.6,3.23021237]
[1720700736197,0.1135931,3158.4,3157.7,3.16684]
[1720700736392,1.09651186,3158.3,3157.8,3.16673]
[1720700736580,0.1135931,3158.4,3157.9,3.16664]
[1720700736581,1.09651186,3158.2,3157.9,3.16664]
[1720700736892,0.1135931,3158.4,3157.9,3.16664]
[1720700737084,1.09646212,3158.3,3157.9,3.16664]
[1720700737279,0.1135931,3158.4,3157.9,3.16664]
[1720700737477,1.09645951,3158.3,3157.9,3.16664]
[1720700737682,0.1135931,3158.4,3158.0,0.06332285]
[1720700737894,1.09645665,3158.3,3158.0,0.06332285]
[1720700738066,0.1135931,3158.4,3158.0,0.06332285]
[1720700738404,0.1135931,3158.4,3158.2,3.16636]
[1720700738676,0.1135931,3158.4,3158.0,3.22985285]
[1720700738677,2.32,3158.3,3157.6,1.64240271]
[1720700738826,3.41652081,3158.3,3157.6,1.64240271]
[1720700739133,4.26285885,3158.2,3157.6,1.64240271]
[1720700739309,3.16636,3158.2,3157.6,1.64240271]
[1720700739489,1.09645423,3158.1,3157.6,1.64240271]
[1720700739689,3.16636,3158.2,3157.6,1.64240271]
[1720700739913,1.09649056,3158.1,3157.6,1.64240271]
[1720700740224,1.09649056,3158.0,3157.6,1.64240271]
[1720700740528,0.1135931,3158.4,3157.6,2.18667924]
[1720700740711,1.09653359,3158.3,3157.7,3.16684]
[1720700740883,1.09653359,3158.2,3157.7,3.16684]
[1720700741084,1.09653359,3158.1,3157.7,3.16684]
[1720700741330,1.09653359,3158.0,3157.7,3.16684]
[1720700741554,3.2797731,3158.4,3157.7,4.2532838]
[1720700741720,1.09653137,3158.3,3157.7,4.2532338]
[1720700742025,1.09653137,3158.2,3157.8,0.55]
[1720700742185,0.1135931,3158.4,3157.8,0.55]
[1720700742385,0.1135931,3158.4,3157.9,0.06332303]
[1720700742587,0.1135931,3158.4,3158.2,3.16635]
[1720700742810,0.1135931,3158.4,3158.2,3.537985]
[1720700743031,0.1135931,3158.4,3158.3,0.0633175]
[1720700743197,0.1135931,3158.4,3158.2,0.371635]
[1720700743386,0.1135931,3158.4,3158.0,3.16652]
[1720700743581,0.1135931,3158.4,3158.1,0.55]
[1720700743786,1.09642152,3158.3,3157.6,12.09931271]
[1720700744035,1.09645136,3158.2,3157.7,0.55]
[1720700744189,0.1135931,3158.4,3157.7,0.55]
[1720700744190,1.09645136,3158.1,3157.7,0.55]
[1720700744390,1.09645136,3158.3,3157.7,5.22250127]
[1720700744931,1.09645136,3158.3,3157.7,2.05565127]
[1720700745090,1.09645136,3158.3,3157.7,1.50565127]
[1720700745827,6.90589198,3158.4,3157.7,1.50565127]
[1720700745982,1.09652591,3158.2,3157.7,1.50565127]
[1720700746181,1.09652591,3158.1,3157.8,0.33743193]
[1720700746420,3.2797931,3158.4,3157.6,12.09935271]
[1720700746594,1.09652206,3158.3,3157.6,12.09935271]
[1720700746795,1.09652206,3158.2,3157.6,12.09935271]
[1720700747121,1.09652206,3158.1,3157.7,3.23017812]
[1720700747438,0.1135931,3158.4,3157.8,3.78001499]
[1720700747591,1.09648891,3158.3,3157.9,0.3780015]
[1720700747920,1.09648891,3158.2,3157.9,3.5446615]
[1720700748127,0.1135931,3158.4,3158.1,3.16643]
[1720700748295,1.0964392,3158.3,3158.1,3.16643]
[1720700748631,0.1135931,3158.4,3158.1,3.16643]
[1720700748824,0.1135931,3158.4,3158.2,0.32297485]
[1720700749428,0.1135931,3158.4,3158.2,3.55262339]
[1720700750704,0.1135931,3158.4,3158.3,3.16626]
[1720700751017,0.1135931,3158.4,3158.3,3.77957771]
[1720700751228,0.1135931,3158.4,3158.3,6.94583041]
[1720700751420,0.1135931,3158.4,3158.3,8.08793726]
[1720700752026,0.1135931,3158.4,3158.3,8.02462685]
[1720700753801,0.1135931,3158.4,3158.3,11.19088685]
[1720700753999,0.1135931,3158.4,3158.3,13.51598685]
[1720700754207,0.1135931,3158.4,3158.3,15.46298685]
[1720700755138,0.1135931,3158.4,3158.3,18.62924685]
[1720700755351,1.32409888,3159.7,3159.3,3.16518]
[1720700755513,1.09601724,3159.6,3159.4,0.06329612]
[1720700755711,1.32409888,3159.9,3159.5,3.16504]
[1720700755922,1.32409888,3159.9,3159.6,0.06329275]
[1720700756225,2.1927232,3160.2,3159.6,3.22823275]
[1720700756226,1.09594521,3159.8,3159.6,3.22823275]
[1720700756433,2.1927232,3160.2,3159.7,3.16485]
[1720700756744,2.1927232,3160.2,3159.7,4.031335]
[1720700757047,2.1927232,3160.2,3159.9,3.16464]
[1720700757218,2.1927232,3160.2,3160.0,0.55]
[1720700757420,2.1927232,3160.2,3160.1,3.16445]
[1720700757630,2.1927232,3160.2,3160.1,3.71445]
[1720700757946,2.1927232,3160.2,3160.1,4.457359]
[1720700758333,2.1927232,3160.2,3160.1,7.621809]
[1720700758898,2.1927232,3160.2,3160.1,0.742909]
[1720700759106,2.1927232,3160.2,3159.9,5.60219]
[1720700759329,2.1927232,3160.2,3160.1,3.16445]
[1720700759653,2.1927232,3160.2,3160.1,6.8789]
[1720700760341,2.1927232,3160.2,3160.1,3.71445]
[1720700760545,2.1927232,3160.2,3160.1,0.55]
[1720700760728,2.1927232,3160.2,3159.8,3.16475]
[1720700761044,2.1927232,3160.2,3160.0,3.1645]
[1720700761554,2.1927232,3160.2,3159.8,3.797711]
[1720700761555,2.1927232,3160.2,3159.8,0.632961]
[1720700761762,2.1927232,3160.2,3159.8,3.797651]
[1720700761916,2.1927232,3160.2,3159.8,0.632961]
[1720700762115,2.1927232,3160.2,3159.9,3.16461]
[1720700762313,2.1927232,3160.2,3160.0,0.55]
[1720700762514,2.1927232,3160.2,3160.0,3.71453]
[1720700762971,2.1927232,3160.2,3160.1,3.16445]
[1720700763147,2.1927232,3160.2,3160.1,9.1381]
[1720700764427,2.1927232,3160.2,3160.1,12.30255]
[1720700764648,2.1927232,3160.2,3160.1,13.12655163]
[1720700765765,2.1927232,3160.2,3160.1,15.07355163]
[1720700767023,5.47601,3161.7,3160.9,3.16363]
[1720700767231,5.47601,3161.7,3161.0,0.55]
[1720700767547,3.16271,3161.9,3161.0,0.55]
[1720700767862,3.2765431,3161.6,3161.0,0.55]
[1720700768035,3.2765431,3161.6,3160.9,6.87722]
[1720700768237,3.2765431,3161.6,3160.9,3.71358]
[1720700769324,0.1135931,3161.6,3160.9,7.564887]
[1720700769657,0.1135931,3161.6,3160.9,4.401317]
[1720700769954,3.2765631,3161.6,3160.9,1.237737]
[1720700770255,3.2765631,3161.6,3160.9,0.55]
[1720700770456,3.16316,3161.4,3160.8,0.55]
[1720700770636,5.54966,3161.4,3160.6,6.32774]
[1720700770831,5.54966,3161.4,3160.7,3.71378]
[1720700771456,2.3865,3161.4,3160.7,3.71378]
[1720700771629,2.3865,3161.4,3160.8,0.371378]
[1720700771967,0.1135931,3161.6,3160.9,0.55]
[1720700772645,0.1135931,3161.6,3160.6,0.55]
[1720700773160,5.50722,3161.5,3160.7,3.16381]
[1720700773360,5.50722,3161.5,3160.8,0.55]
[1720700773658,3.2765431,3161.6,3160.8,4.085041]
[1720700774038,0.1135931,3161.6,3160.9,3.1636]
[1720700774248,0.1135931,3161.6,3161.0,0.55]
[1720700774543,3.16305,3161.5,3160.8,0.55]
[1720700774753,3.16316,3161.4,3160.8,0.371389]
[1720700774961,3.16316,3161.4,3160.7,0.55]
[1720700775153,2.3756,3161.3,3160.7,0.55]
[1720700775876,3.16305,3161.5,3160.8,3.16372]
[1720700776167,6.32618,3161.5,3160.8,3.16372]
[1720700776378,3.16305,3161.5,3160.8,3.16372]
[1720700776562,6.32619,3161.5,3160.8,3.16372]
[1720700776774,6.32617,3161.5,3160.8,3.851481]
[1720700776937,3.16315,3161.4,3160.8,3.851481]
[1720700777138,3.16306,3161.5,3160.9,3.16362]
[1720700777360,0.1135931,3161.6,3161.0,3.71354]
[1720700777678,0.1135931,3161.6,3161.1,0.33132057]
[1720700777840,0.1135931,3161.6,3161.1,0.39457886]
[1720700778276,0.1135931,3161.6,3161.3,3.16324]
[1720700778453,0.1135931,3161.6,3161.4,0.55]
[1720700778750,0.1135931,3161.6,3161.1,0.33132057]
[1720700778969,0.1135931,3161.6,3161.2,0.89948006]
[1720700781255,3.2766131,3161.6,3161.1,0.33132057]
[1720700781856,3.1631,3161.5,3161.1,0.33132057]
[1720700782279,3.16316,3161.4,3161.1,0.33132057]
[1720700782445,3.2766131,3161.6,3161.1,0.33132057]
[1720700782652,0.1135931,3161.6,3161.1,0.39458455]
[1720700783075,0.1135931,3161.6,3161.2,0.55]
[1720700783241,0.1135931,3161.6,3161.1,0.33132057]
[1720700783978,0.1135931,3161.6,3161.2,0.41906531]
[1720700784280,0.1135931,3161.6,3161.2,0.3558069]
[1720700785679,0.1135931,3161.6,3161.3,0.61325848]
[1720700786244,0.1135931,3161.6,3161.3,3.77647848]
[1720700786643,0.1135931,3161.6,3161.2,0.3558069]
[1720700786957,3.16368,3160.9,3160.1,0.33107525]
[1720700787156,3.16361,3161.0,3160.1,11.142191]
[1720700787576,3.16365,3160.9,3160.1,11.142191]
[1720700788085,3.16343,3161.2,3160.4,3.16414]
[1720700788679,1.09564128,3161.1,3160.5,0.316414]
[1720700788879,3.16343,3161.2,3160.5,0.316414]
[1720700789384,3.16308,3161.5,3160.5,0.37968457]
[1720700789587,3.16308,3161.5,3160.7,3.16385]
[1720700789588,1.09550182,3161.4,3160.7,3.16385]
[1720700789746,1.09550182,3161.4,3160.8,0.55]
[1720700789952,0.1135931,3161.6,3160.9,0.371385]
[1720700790254,0.1135931,3161.6,3161.0,0.61325995]
[1720700790849,0.1135931,3161.6,3161.0,0.55]
[1720700791050,0.1135931,3161.6,3161.1,0.06325998]
[1720700791584,0.1135931,3161.6,3161.0,0.55]
[1720700792357,0.1135931,3161.6,3161.1,0.4085005]
[1720700792559,0.1135931,3161.6,3161.0,0.55]
[1720700792782,0.1135931,3161.6,3160.9,0.371385]
[1720700792783,3.16307,3161.5,3160.9,0.371385]
[1720700793091,0.77428682,3161.4,3161.3,3.16325]
[1720700793249,0.1135931,3161.6,3161.4,0.55]
[1720700793445,0.1135931,3161.6,3161.2,3.71335]
[1720700794589,0.1135931,3161.6,3161.3,3.16323]
[1720700794757,0.1135931,3161.6,3161.4,0.921323]
[1720700795804,0.1135931,3161.6,3161.5,3.16305]
[1720700795967,0.1135931,3161.6,3161.5,3.71305]
[1720700797385,0.1135931,3161.6,3161.5,0.55]
[1720700797881,0.1135931,3161.6,3161.5,3.71305]
[1720700798097,0.1135931,3161.6,3161.5,0.9584373]
[1720700798261,0.1135931,3161.6,3161.5,0.55]
[1720700798462,0.1135931,3161.6,3161.1,3.16343]
[1720700798665,0.1135931,3161.6,3161.2,3.71327]
[1720700798864,0.1135931,3161.6,3161.2,1.0]
[1720700799589,0.1135931,3161.6,3161.2,4.16327]
[1720700799789,0.1135931,3161.6,3161.5,0.2]
[1720700800799,0.1135931,3161.6,3161.5,0.26325339]
[1720700801156,0.1135931,3161.6,3161.5,3.91305]
[1720700802282,0.1135931,3161.6,3161.5,0.75]
[1720700802463,0.1135931,3161.6,3161.5,0.2]
[1720700804003,0.1135931,3161.6,3161.5,0.4]
[1720700804159,0.68515341,3161.6,3161.5,0.4]
[1720700804364,6.4394931,3161.6,3161.5,0.4]
[1720700804804,7.76419267,3161.6,3161.5,0.4]
[1720700805995,7.76586628,3161.6,3161.5,0.4]
[1720700807315,3.2765431,3161.6,3161.5,0.4]
[1720700807640,4.60291628,3161.6,3161.5,0.4]
[1720700807980,4.60291628,3161.6,3161.5,0.6]
[1720700808284,7.62578737,3161.6,3161.5,0.6]
[1720700808469,9.28475861,3161.6,3161.5,0.6]
[1720700808965,4.93556704,3161.6,3161.5,0.6]
[1720700809186,0.1135931,3161.6,3161.5,0.6]
[1720700809402,1.44088473,3161.6,3161.5,0.6]
[1720700810179,3.2765431,3161.6,3161.5,0.6]
[1720700810509,5.5884431,3161.6,3161.5,0.6]
[1720700811098,9.82559628,3161.6,3161.5,0.6]
[1720700811805,11.81642501,3161.6,3161.5,0.6]
[1720700812171,9.82559628,3161.6,3161.5,0.8]
[1720700812475,11.81691672,3161.6,3161.5,0.8]
[1720700812682,9.82559628,3161.6,3161.5,0.8]
[1720700815608,6.4394931,3161.6,3161.5,0.8]
[1720700816015,3.2765431,3161.6,3161.5,0.8]
[1720700816317,3.2765431,3161.6,3161.5,1.0]
[1720700816516,0.1135931,3161.6,3161.5,1.0]
[1720700816742,1.77236352,3161.6,3161.5,1.0]
[1720700816911,0.1135931,3161.6,3161.5,1.0]
[1720700817116,1.44058216,3161.6,3161.5,1.0]
[1720700817315,0.1135931,3161.6,3161.5,1.0]
[1720700817817,0.1135931,3161.6,3161.5,7.55069366]
[1720700819939,0.1135931,3161.6,3161.5,4.38764366]
[1720700820138,0.1135931,3161.6,3161.5,1.97264366]
[1720700820447,0.1135931,3161.6,3161.5,1.0]
[1720700821328,1.44058216,3161.6,3161.5,1.0]
[1720700822050,8.0980869,3161.6,3161.5,1.0]
[1720700822411,6.4394931,3161.6,3161.5,1.0]
[1720700823355,1.77230869,3161.6,3161.5,1.0]
[1720700823651,8.09820869,3161.6,3161.5,1.0]
[1720700823839,8.90802956,3161.6,3161.5,1.0]
[1720700824035,5.74507956,3161.6,3161.5,1.0]
[1720700824250,3.2765431,3161.6,3161.5,1.0]
[1720700824543,8.09820869,3161.6,3161.5,1.0]
[1720700824748,6.4394931,3161.6,3161.5,1.0]
[1720700824951,3.2765431,3161.6,3161.5,1.0]
[1720700825282,7.76634466,3161.6,3161.5,1.0]
[1720700825420,9.23537973,3161.6,3161.5,1.0]
[1720700825756,9.23542264,3161.6,3161.5,1.0]
[1720700826346,7.57669594,3161.6,3161.5,1.0]
[1720700826546,3.2765431,3161.6,3161.5,1.0]
[1720700826927,4.60341744,3161.6,3161.5,1.0]
[1720700827342,4.93526145,3161.6,3161.5,1.0]
[1720700827724,3.2765431,3161.6,3161.5,1.0]
[1720700828337,4.93526145,3161.6,3161.5,1.0]
[1720700828548,4.93521239,3161.6,3161.5,1.0]
[1720700830443,1.77226239,3161.6,3161.5,1.0]
[1720700830764,3.2765431,3161.6,3161.5,1.0]
[1720700830970,0.1135931,3161.6,3161.5,1.0]
[1720700831138,1.44053321,3161.6,3161.5,1.0]
[1720700831329,0.1135931,3161.6,3161.5,1.0]
[1720700831860,1.44058585,3161.6,3161.5,1.0]
[1720700833644,0.1135931,3161.6,3161.5,1.0]
[1720700834177,0.1135931,3161.6,3161.5,1.41632]
[1720700835680,0.1135931,3161.6,3161.5,4.57937]
[1720700835846,0.1135931,3161.6,3161.5,5.12937]
[1720700836188,0.1135931,3161.6,3161.5,1.41632]
[1720700837284,0.1123487,3161.6,3161.5,1.41467767]
[1720700840135,0.1123487,3161.6,3161.5,0.99835767]
[1720700843801,1.3271702,3161.9,3161.6,2.4442]
[1720700843945,1.32727501,3163.4,3163.0,3.16149]
[1720700844161,1.32727501,3163.5,3163.1,0.06322132]
[1720700844407,4.48770501,3164.2,3163.2,0.55]
[1720700844568,4.48770501,3164.2,3163.3,3.16117]
[1720700844569,3.16043,3164.2,3163.3,3.16117]
[1720700844759,1.32727501,3164.2,3163.4,3.16115]
[1720700844962,1.32727501,3164.4,3163.6,3.16089]
[1720700845196,1.32727501,3164.5,3163.7,3.71076]
[1720700845366,3.16006,3164.5,3163.7,0.61320733]
[1720700845575,3.16006,3164.5,3163.7,3.71085]
[1720700845987,3.16006,3164.5,3163.2,3.16135]
[1720700845988,3.16055,3164.0,3163.2,3.16135]
[1720700846154,1.32260114,3164.5,3163.3,2.4147]
[1720700846361,0.1135931,3164.7,3163.4,0.55]
[1720700846583,3.16004,3164.6,3163.4,3.16108]
[1720700846783,3.16026,3164.3,3163.4,3.16108]
[1720700847611,3.16026,3164.3,3161.9,3.81912865]
[1720700847612,2.3354,3164.2,3161.9,5.46534]
[1720700847777,3.13950114,3164.5,3162.1,3.16244]
[1720700847778,2.3354,3163.2,3162.1,3.16244]
[1720700848101,3.16175,3162.8,3161.9,3.16264]
[1720700848688,3.16175,3162.8,3161.9,3.16256]
[1720700848907,3.16186,3162.7,3161.7,6.32281]
[1720700849115,3.16216,3162.4,3161.7,3.16]
[1720700849404,3.16216,3162.4,3161.5,0.2]
[1720700849405,3.16254,3162.1,3161.5,0.2]
[1720700849900,3.1625,3162.1,3161.5,0.2]
[1720700850100,3.16209,3162.5,3161.5,3.36304]
[1720700850405,3.16149,3163.1,3162.0,3.16245]
[1720700850563,3.711179,3163.1,3162.1,3.22569221]
[1720700850998,0.549689,3163.1,3162.4,3.16214]
[1720700851173,3.16106,3163.5,3162.5,3.16204]
[1720700851369,2.4605,3163.7,3162.8,3.16174]
[1720700851601,3.16063,3164.0,3163.0,3.16152]
[1720700851906,2.4468,3164.2,3163.2,3.16129]
[1720700852074,5.60722,3164.2,3163.4,3.16114]
[1720700852277,0.560706,3164.1,3163.4,3.16114]
[1720700852489,3.721226,3164.1,3163.2,3.16129]
[1720700852669,3.721226,3164.1,3163.3,3.1612]
[1720700852866,0.560706,3164.1,3163.3,3.1612]
[1720700853298,0.560706,3164.1,3163.3,3.22441856]
[1720700853299,3.721186,3164.1,3163.3,3.22441856]
[1720700853478,3.7773586,3164.0,3163.2,3.16128]
[1720700853867,3.7773586,3164.0,3163.2,6.32254]
[1720700854169,0.6167986,3164.0,3163.3,3.16123]
[1720700854367,3.16087,3163.7,3162.8,3.16167]
[1720700854580,6.32182,3163.7,3162.8,3.16167]
[1720700854781,3.16087,3163.7,3162.9,3.16164]
[1720700855192,3.16087,3163.7,3162.8,3.16167]
[1720700855390,3.16069,3163.9,3162.9,3.1616]
[1720700855618,3.16098,3163.6,3162.3,3.16]
[1720700855767,3.16125,3163.4,3162.4,0.063226]
[1720700856106,3.16098,3163.6,3162.3,3.16]
[1720700856107,3.16164,3163.0,3162.3,3.16]
[1720700856266,6.32328,3163.0,3162.3,3.16]
[1720700857012,2.3636,3163.3,3162.4,3.16208]
[1720700857168,0.316069,3163.8,3162.5,0.06323481]
[1720700857169,2.712569,3163.8,3162.5,0.06323481]
[1720700857369,2.712569,3163.8,3162.3,3.16]
[1720700857370,3.16103,3163.6,3162.7,3.16185]
[1720700857713,3.16103,3163.6,3162.6,3.16192]
[1720700858179,3.16091,3163.7,3162.7,0.55]
[1720700858180,3.16106,3163.5,3162.7,0.55]
[1720700858378,0.632197,3163.5,3162.8,3.16174]
[1720700858588,3.16101,3163.6,3162.7,0.55]
[1720700858790,3.16101,3163.6,3162.4,3.16211]
[1720700858791,3.16108,3163.5,3162.4,3.16211]
[1720700858990,3.16155,3163.1,3162.3,3.16]
[1720700859205,0.316155,3163.0,3162.3,3.16]
[1720700859392,3.16154,3163.1,3162.3,3.16]
[1720700859586,3.16108,3163.5,3162.6,3.16193]
[1720700859799,3.16123,3163.4,3162.3,3.16]
[1720700860081,3.16126,3163.3,3162.4,3.16207]
[1720700860280,3.16147,3163.1,3162.3,3.16]
[1720700860778,6.3226,3163.3,3162.3,6.32223]
[1720700860979,6.95486,3163.3,3162.3,6.32223]
[1720700861279,3.16167,3162.9,3162.3,3.16]
[1720700862079,0.63226,3163.3,3162.3,3.16]
[1720700862080,3.16153,3163.1,3162.3,3.16]
[1720700862524,3.16153,3163.1,3162.3,2.91]
[1720700863093,3.16155,3163.0,3162.3,2.91]
[1720700863312,0.63226,3163.3,3162.4,3.16213]
[1720700863533,3.16121,3163.4,3162.6,3.16195]
[1720700863895,3.16116,3163.4,3162.6,3.16195]
[1720700864690,3.16106,3163.5,3162.6,3.16187]
[1720700864885,3.16106,3163.5,3162.5,0.61323064]
[1720700865108,3.16117,3163.4,3162.7,3.16185]
[1720700865425,3.16092,3163.7,3162.8,0.06323064]
[1720700865582,3.16101,3163.6,3162.8,3.22497064]
[1720700866321,3.16106,3163.5,3162.8,3.22497064]
[1720700866522,3.793258,3163.5,3162.8,3.16174]
[1720700866829,3.793258,3163.5,3162.6,3.22514842]
[1720700867027,3.70738335,3163.5,3162.7,3.16185]
[1720700867188,3.70738335,3163.5,3162.8,0.06322843]
[1720700867388,0.632198,3163.5,3162.8,3.22496843]
[1720700867927,3.16067,3163.9,3163.2,3.16132]
[1720700868527,3.16008,3164.5,3162.5,2.2522]
[1720700868528,3.16095,3163.6,3162.8,3.16174]
[1720700868694,3.16106,3163.5,3162.7,3.16185]
[1720700869304,3.16106,3163.5,3162.7,3.16178]
[1720700869508,3.16105,3163.5,3162.8,3.16174]
[1720700869835,3.16105,3163.5,3162.5,5.47741744]
[1720700869836,3.16105,3163.5,3162.7,3.16179]
[1720700871430,3.16116,3163.4,3162.6,3.16189]
[1720700871592,3.16116,3163.4,3162.7,0.55]
[1720700872112,3.16116,3163.4,3162.7,3.71184]
[1720700873029,3.52441152,3163.4,3162.5,2.2522]
[1720700873232,3.16136,3163.2,3162.3,3.16218]
[1720700873524,3.16136,3163.2,3162.4,0.55]
[1720700873742,3.16136,3163.2,3162.4,3.71208]
[1720700874730,3.16136,3163.2,3162.5,3.16203]
[1720700874934,3.16136,3163.2,3162.4,0.55]
[1720700875103,3.16136,3163.2,3162.3,0.55]
[1720700875346,3.16192,3162.7,3162.2,0.33090153]
[1720700875630,3.16202,3162.6,3162.2,0.33090153]
[1720700875834,3.16202,3162.6,3161.6,5.51191]
[1720700876140,3.16202,3162.6,3161.9,0.33096938]
[1720700877337,3.16202,3162.6,3161.9,3.49359938]
[1720700878148,0.316202,3162.6,3161.9,0.33096938]
[1720700878299,1.938,3163.1,3161.9,0.33096938]
[1720700878498,3.16158,3163.0,3161.9,0.33096938]
[1720700878930,3.1621,3162.5,3161.9,0.33096938]
[1720700880241,3.16227,3162.3,3161.9,0.33096938]
[1720700882346,3.1621,3162.5,3161.9,0.33096938]
[1720700882513,3.16211,3162.5,3161.9,0.33096938]
[1720700882900,5.63065,3162.6,3161.9,0.33096938]
[1720700883103,3.16232,3162.3,3161.9,0.33096938]
[1720700883415,3.1618,3162.8,3161.9,0.33096938]
[1720700883802,2.4962,3163.1,3162.0,2.45464379]
[1720700884001,3.16173,3162.9,3162.0,5.61714379]
[1720700884225,3.16172,3162.9,3162.0,5.61714379]
[1720700884736,3.16131,3163.3,3162.0,2.3914]
[1720700885044,3.16131,3163.3,3162.1,0.55]
[1720700885243,3.16172,3162.9,3162.1,3.71237]
[1720700885547,3.16176,3162.8,3162.1,6.87476]
[1720700885902,3.16176,3162.8,3162.1,3.71237]
[1720700886103,2.4518,3163.2,3161.9,0.33096938]
[1720700886320,3.16237,3162.2,3161.9,0.33096938]
[1720700886512,3.16255,3162.0,3161.9,0.33096938]
[1720700886716,3.16255,3162.0,3161.5,0.8]
[1720700886717,3.16288,3161.7,3161.5,0.8]
[1720700887303,3.16207,3162.5,3161.5,0.8]
[1720700887304,3.16249,3162.1,3161.5,0.8]
[1720700887500,3.1617,3162.9,3161.8,3.16273]
[1720700887721,1.32208368,3163.2,3161.6,3.16287]
[1720700887722,3.16213,3162.5,3161.6,3.16287]
[1720700887929,6.32426,3162.5,3161.7,3.16285]
[1720700888116,6.32426,3162.5,3161.7,3.71285]
[1720700888320,3.16213,3162.5,3161.7,6.87564]
[1720700888506,3.16189,3162.7,3161.8,3.22597722]
[1720700888908,3.16189,3162.7,3161.8,3.16273]
[1720700889158,3.16206,3162.5,3161.7,3.71279]
[1720700889358,3.16206,3162.5,3161.5,3.963]
[1720700889359,3.16223,3162.4,3161.5,3.963]
[1720700889537,3.16223,3162.4,3161.6,0.55]
[1720700889860,3.16223,3162.4,3161.6,3.71292]
[1720700890243,3.16227,3162.3,3161.6,3.71292]
[1720700891336,3.16227,3162.3,3161.6,0.55]
[1720700891532,3.16227,3162.3,3161.5,3.96305]
[1720700891863,3.16227,3162.3,3161.5,3.96299]
[1720700892037,3.16226,3162.3,3161.6,3.1629]
[1720700892235,3.16206,3162.5,3161.6,3.1629]
[1720700892552,3.16225,3162.4,3161.6,3.1629]
[1720700893140,3.16193,3162.7,3161.8,3.16274]
[1720700893421,3.162,3162.6,3162.2,0.2]
[1720700894060,1.32208368,3163.2,3162.2,0.2]
[1720700894257,4.6520372,3163.2,3162.2,3.36227]
[1720700894559,3.16161,3163.0,3162.2,6.52456]
[1720700895061,3.16161,3163.0,3162.3,3.16225]
[1720700895265,1.32208368,3163.2,3162.4,0.06323803]
[1720700895452,1.32208368,3163.2,3162.8,3.16175]
[1720700897570,1.32208368,3163.2,3163.1,3.16145]
[1720700897955,1.32208368,3163.2,3163.1,3.71145]
[1720700898462,1.32208368,3163.2,3162.4,2.91]
[1720700898659,1.32208368,3163.2,3162.5,3.16197]
[1720700898861,4.48331368,3163.4,3162.6,3.16192]
[1720700899063,1.32208368,3163.5,3162.4,2.91]
[1720700899374,1.32208368,3163.5,3162.5,0.61322787]
[1720700899663,1.32208368,3163.7,3163.0,3.16146]
[1720700899825,1.32208368,3163.6,3163.0,3.16146]
[1720700900227,1.32208368,3163.6,3162.8,3.1617]
[1720700900460,1.32208368,3163.5,3162.8,3.1617]
[1720700900664,1.32208368,3163.4,3162.6,3.16195]
[1720700900864,6.3224,3163.4,3162.6,3.16195]
[1720700901166,4.48339368,3163.3,3162.6,3.16195]
[1720700901461,4.48339368,3163.3,3162.4,6.07206]
[1720700902466,3.16146,3163.1,3162.4,2.91]
[1720700902668,3.16146,3163.1,3162.4,6.07215]
[1720700904127,7.64762637,3163.3,3162.4,6.07215]
[1720700904364,1.65628545,3163.4,3162.6,3.16195]
[1720700904365,1.32497637,3163.4,3162.6,3.16195]
[1720700904550,3.16121,3163.4,3162.6,3.16195]
[1720700905339,3.16126,3163.3,3162.6,3.16195]
[1720700905657,3.16126,3163.3,3163.1,0.2]
[1720700906077,1.32497637,3163.4,3163.1,0.2]
[1720700906228,1.32497637,3163.6,3163.1,0.2]
[1720700906434,1.32497637,3163.7,3163.2,3.71127]
[1720700906653,1.32497637,3163.8,3163.2,3.71127]
[1720700907026,1.93916655,3163.8,3163.1,0.2]
[1720700907259,3.16086,3163.7,3163.1,0.2]
[1720700907475,3.16087,3163.7,3163.1,0.2]
[1720700908957,1.32497637,3164.2,3163.2,0.55]
[1720700909152,1.32497637,3164.2,3163.6,3.16087]
[1720700909359,1.32497637,3164.3,3163.6,3.16087]
[1720700909561,1.32497637,3164.2,3163.4,3.16107]
[1720700909729,4.48549637,3164.1,3163.4,3.16107]
[1720700909936,1.65575811,3164.2,3163.1,0.4]
[1720700909937,1.32497637,3164.0,3163.1,0.4]
[1720700910242,1.32497637,3163.8,3163.1,0.4]
[1720700910430,3.45899345,3163.7,3163.1,0.4]
[1720700910635,4.48589637,3163.7,3163.1,0.4]